[Event "Titled Tuesday Blitz January 31 Late 2023"]
[White "Bernat, David"]
[Black "Taspinar, Yanki"]
[WhiteFideId "2099225"]
[BlackFideId "34561188"]
[WhiteElo "1862"]
[BlackElo "2262"]
[Result "0-1"]
[Round "01"]
[TimeControl "180+2"]
[Date "2023.01.31"]
[WhiteClock "0:00:05"]
[BlackClock "0:00:08"]

1. c4 {[%clk 0:02:55]}  c5 {[%clk 0:02:58]} 2. Nc3 {[%clk 0:02:54]}  Nc6 {[%clk 0:02:59]} 3. g3 {[%clk 0:02:55]}  g6 {[%clk 0:02:59]} 4. Bg2 {[%clk 0:02:55]}  Bg7 {[%clk 0:03:00]} 5. e4 {[%clk 0:02:56]}  e5 {[%clk 0:02:59]} 6. Nge2 {[%clk 0:02:56]}  Nge7 {[%clk 0:03:00]} 7. O-O {[%clk 0:02:57]}  O-O {[%clk 0:03:00]} 8. d3 {[%clk 0:02:58]}  d6 {[%clk 0:03:01]} 9. a3 {[%clk 0:02:58]}  Be6 {[%clk 0:03:01]} 10. Rb1 {[%clk 0:02:59]}  a5 {[%clk 0:02:59]} 11. Nd5 {[%clk 0:02:59]}  f5 {[%clk 0:02:49]} 12. Bg5 {[%clk 0:02:58]}  h6 {[%clk 0:02:42]} 13. Bxe7 {[%clk 0:02:55]}  Nxe7 {[%clk 0:02:43]} 14. exf5 {[%clk 0:02:55]}  gxf5 {[%clk 0:02:37]} 15. f4 {[%clk 0:02:48]}  Nxd5 {[%clk 0:02:21]} 16. cxd5 {[%clk 0:02:42]}  Bd7 {[%clk 0:02:22]} 17. b4 {[%clk 0:02:37]}  cxb4 {[%clk 0:02:14]} 18. axb4 {[%clk 0:02:38]}  a4 {[%clk 0:02:15]} 19. fxe5 {[%clk 0:02:37]}  dxe5 {[%clk 0:02:09]} 20. d4 {[%clk 0:02:35]}  exd4 {[%clk 0:02:01]} 21. Nf4 {[%clk 0:02:31]}  a3 {[%clk 0:01:55]} 22. Ra1 {[%clk 0:02:25]}  Qb6 {[%clk 0:01:35]} 23. Nd3 {[%clk 0:02:12]}  Bb5 {[%clk 0:01:18]} 24. Bh3 {[%clk 0:01:45]}  Qd6 {[%clk 0:00:46]} 25. Rxf5 {[%clk 0:01:28]}  Rxf5 {[%clk 0:00:29]} 26. Bxf5 {[%clk 0:01:29]}  Qxd5 {[%clk 0:00:28]} 27. Qg4 {[%clk 0:01:29]}  Ra6 {[%clk 0:00:14]} 28. Nf4 {[%clk 0:01:14]}  Qe5 {[%clk 0:00:11]} 29. Be6+ {[%clk 0:01:01]}  Rxe6 {[%clk 0:00:09]} 30. Qxe6+ {[%clk 0:01:01]}  Qxe6 {[%clk 0:00:05]} 31. Nxe6 {[%clk 0:01:01]}  Be5 {[%clk 0:00:03]} 32. Rxa3 {[%clk 0:00:55]}  d3 {[%clk 0:00:03]} 33. Ra2 {[%clk 0:00:37]}  Bc3 {[%clk 0:00:02]} 34. Nc7 {[%clk 0:00:18]}  d2 {[%clk 0:00:02]} 35. Rxd2 {[%clk 0:00:18]}  Bxd2 {[%clk 0:00:03]} 36. Nxb5 {[%clk 0:00:18]}  Bxb4 {[%clk 0:00:04]} 37. g4 {[%clk 0:00:18]}  Kf7 {[%clk 0:00:04]} 38. Kg2 {[%clk 0:00:17]}  Be7 {[%clk 0:00:04]} 39. Kf3 {[%clk 0:00:16]}  Ke6 {[%clk 0:00:05]} 40. Ke4 {[%clk 0:00:15]}  Bg5 {[%clk 0:00:05]} 41. Nd4+ {[%clk 0:00:15]}  Kd6 {[%clk 0:00:05]} 42. Nf3 {[%clk 0:00:15]}  Be7 {[%clk 0:00:05]} 43. h4 {[%clk 0:00:15]}  b5 {[%clk 0:00:05]} 44. g5 {[%clk 0:00:14]}  h5 {[%clk 0:00:05]} 45. Ne5 {[%clk 0:00:11]}  b4 {[%clk 0:00:04]} 46. Nd3 {[%clk 0:00:10]}  b3 {[%clk 0:00:03]} 47. Kf5 {[%clk 0:00:10]}  Kd5 {[%clk 0:00:03]} 48. g6 {[%clk 0:00:10]}  Bf8 {[%clk 0:00:01]} 49. Kf6 {[%clk 0:00:10]}  Kd4 {[%clk 0:00:02]} 50. Nb2 {[%clk 0:00:10]}  Kc3 {[%clk 0:00:02]} 51. Na4+ {[%clk 0:00:09]}  Kb4 {[%clk 0:00:02]} 52. Nb2 {[%clk 0:00:09]}  Kc3 {[%clk 0:00:03]} 53. Na4+ {[%clk 0:00:07]}  Kb4 {[%clk 0:00:03]} 54. Nb2 {[%clk 0:00:07]}  Ka3 {[%clk 0:00:04]} 55. Nd3 {[%clk 0:00:07]}  Ka2 {[%clk 0:00:04]} 56. g7 {[%clk 0:00:07]}  Bxg7+ {[%clk 0:00:04]} 57. Kxg7 {[%clk 0:00:08]}  Kb1 {[%clk 0:00:05]} 58. Kg6 {[%clk 0:00:08]}  Kc2 {[%clk 0:00:05]} 59. Nb4+ {[%clk 0:00:05]}  Kc3 {[%clk 0:00:05]} 60. Nd5+ {[%clk 0:00:05]}  Kd4 {[%clk 0:00:06]} 61. Nf4 {[%clk 0:00:04]}  b2 {[%clk 0:00:05]} 62. Ne2+ {[%clk 0:00:05]}  Kd3 {[%clk 0:00:05]} 63. Nf4+ {[%clk 0:00:05]}  Kc4 {[%clk 0:00:04]} 64. Nxh5 {[%clk 0:00:03]}  b1=Q+ {[%clk 0:00:04]} 65. Kg5 {[%clk 0:00:04]}  Qc1+ {[%clk 0:00:05]} 66. Kg6 {[%clk 0:00:04]}  Kd5 {[%clk 0:00:05]} 67. Nf6+ {[%clk 0:00:03]}  Ke6 {[%clk 0:00:05]} 68. h5 {[%clk 0:00:04]}  Qg1+ {[%clk 0:00:06]} 69. Kh7 {[%clk 0:00:03]}  Kxf6 {[%clk 0:00:06]} 70. h6 {[%clk 0:00:04]}  Qg6+ {[%clk 0:00:06]} 71. Kh8 {[%clk 0:00:05]}  Qxh6+ {[%clk 0:00:07]} 72. Kg8 {[%clk 0:00:05]}  Qg7# {[%clk 0:00:08]} 0-1


[Site "https://www.chess.com"]

[Event "Titled Tuesday Blitz January 31 Late 2023"]
[White "Ruiz Aguilar, Pablo Alexander"]
[Black "Kanakaris, Georgios"]
[WhiteFideId "4401352"]
[BlackFideId "4209460"]
[WhiteElo "2161"]
[BlackElo "2391"]
[Result "0-1"]
[Round "01"]
[TimeControl "180+2"]
[Date "2023.01.31"]
[WhiteClock "0:00:01"]
[BlackClock "0:00:08"]

1. e4 {[%clk 0:02:58]}  e6 {[%clk 0:03:00]} 2. d4 {[%clk 0:02:57]}  d5 {[%clk 0:03:00]} 3. Nd2 {[%clk 0:02:57]}  Be7 {[%clk 0:03:00]} 4. Ngf3 {[%clk 0:02:56]}  Nf6 {[%clk 0:03:00]} 5. e5 {[%clk 0:02:55]}  Nfd7 {[%clk 0:03:00]} 6. Bd3 {[%clk 0:02:55]}  c5 {[%clk 0:03:01]} 7. c3 {[%clk 0:02:56]}  Nc6 {[%clk 0:03:01]} 8. O-O {[%clk 0:02:54]}  a5 {[%clk 0:03:02]} 9. a4 {[%clk 0:02:51]}  Qb6 {[%clk 0:02:57]} 10. dxc5 {[%clk 0:02:46]}  Nxc5 {[%clk 0:02:54]} 11. Bc2 {[%clk 0:02:46]}  Bd7 {[%clk 0:02:53]} 12. Nb3 {[%clk 0:02:45]}  Nxb3 {[%clk 0:02:51]} 13. Bxb3 {[%clk 0:02:44]}  O-O-O {[%clk 0:02:39]} 14. Bc2 {[%clk 0:02:39]}  f6 {[%clk 0:02:37]} 15. exf6 {[%clk 0:02:36]}  gxf6 {[%clk 0:02:37]} 16. Be3 {[%clk 0:02:33]}  Bc5 {[%clk 0:02:37]} 17. Bxc5 {[%clk 0:02:32]}  Qxc5 {[%clk 0:02:38]} 18. Nd4 {[%clk 0:02:30]}  Nxd4 {[%clk 0:02:36]} 19. cxd4 {[%clk 0:02:30]}  Qb4 {[%clk 0:02:31]} 20. b3 {[%clk 0:02:25]}  Kb8 {[%clk 0:02:29]} 21. Re1 {[%clk 0:02:19]}  Rc8 {[%clk 0:02:27]} 22. Rc1 {[%clk 0:02:14]}  Rc3 {[%clk 0:02:23]} 23. Re3 {[%clk 0:02:06]}  Rhc8 {[%clk 0:02:17]} 24. Rxc3 {[%clk 0:01:55]}  Qxc3 {[%clk 0:02:13]} 25. h3 {[%clk 0:01:51]}  Be8 {[%clk 0:02:08]} 26. Kh2 {[%clk 0:01:36]}  Bg6 {[%clk 0:01:31]} 27. Bxg6 {[%clk 0:01:35]}  Qxc1 {[%clk 0:01:31]} 28. Qxc1 {[%clk 0:01:31]}  Rxc1 {[%clk 0:01:32]} 29. Bxh7 {[%clk 0:01:31]}  Kc7 {[%clk 0:01:26]} 30. h4 {[%clk 0:01:30]}  Kd6 {[%clk 0:01:27]} 31. h5 {[%clk 0:01:29]}  Ke7 {[%clk 0:01:23]} 32. g4 {[%clk 0:01:07]}  Rc3 {[%clk 0:01:15]} 33. Bg8 {[%clk 0:01:05]}  Rc8 {[%clk 0:01:06]} 34. Bh7 {[%clk 0:01:04]}  Kf7 {[%clk 0:01:01]} 35. Bd3 {[%clk 0:00:53]}  Rc3 {[%clk 0:01:00]} 36. Bb5 {[%clk 0:00:54]}  Rxb3 {[%clk 0:00:55]} 37. Bd7 {[%clk 0:00:54]}  Rb6 {[%clk 0:00:52]} 38. f4 {[%clk 0:00:50]}  Rd6 {[%clk 0:00:49]} 39. Bc8 {[%clk 0:00:51]}  b6 {[%clk 0:00:48]} 40. g5 {[%clk 0:00:48]}  fxg5 {[%clk 0:00:47]} 41. fxg5 {[%clk 0:00:48]}  Rd8 {[%clk 0:00:48]} 42. Ba6 {[%clk 0:00:41]}  Rh8 {[%clk 0:00:48]} 43. Be2 {[%clk 0:00:40]}  Rg8 {[%clk 0:00:42]} 44. g6+ {[%clk 0:00:35]}  Kf6 {[%clk 0:00:43]} 45. Kg3 {[%clk 0:00:32]}  Kg5 {[%clk 0:00:43]} 46. Bg4 {[%clk 0:00:33]}  Re8 {[%clk 0:00:40]} 47. g7 {[%clk 0:00:30]}  Kh6 {[%clk 0:00:34]} 48. Bxe6 {[%clk 0:00:26]}  Kxg7 {[%clk 0:00:34]} 49. Bxd5 {[%clk 0:00:26]}  Rd8 {[%clk 0:00:34]} 50. Bc4 {[%clk 0:00:22]}  Rxd4 {[%clk 0:00:35]} 51. Bb5 {[%clk 0:00:23]}  Rb4 {[%clk 0:00:32]} 52. Be8 {[%clk 0:00:22]}  Kf6 {[%clk 0:00:28]} 53. Kf3 {[%clk 0:00:22]}  Kf5 {[%clk 0:00:23]} 54. Ke3 {[%clk 0:00:20]}  Ke5 {[%clk 0:00:20]} 55. Kd3 {[%clk 0:00:20]}  Kd5 {[%clk 0:00:20]} 56. Kc3 {[%clk 0:00:20]}  Kc5 {[%clk 0:00:21]} 57. Bd7 {[%clk 0:00:15]}  Rh4 {[%clk 0:00:20]} 58. Be8 {[%clk 0:00:15]}  Rh3+ {[%clk 0:00:20]} 59. Kd2 {[%clk 0:00:14]}  Kb4 {[%clk 0:00:21]} 60. Ke2 {[%clk 0:00:13]}  Kc5 {[%clk 0:00:21]} 61. Kf2 {[%clk 0:00:14]}  b5 {[%clk 0:00:16]} 62. Bxb5 {[%clk 0:00:11]}  Rxh5 {[%clk 0:00:16]} 63. Ke3 {[%clk 0:00:12]}  Rh4 {[%clk 0:00:16]} 64. Kd2 {[%clk 0:00:12]}  Kd4 {[%clk 0:00:16]} 65. Kc2 {[%clk 0:00:11]}  Rh3 {[%clk 0:00:16]} 66. Kb2 {[%clk 0:00:12]}  Rc3 {[%clk 0:00:15]} 67. Bd7 {[%clk 0:00:11]}  Rc7 {[%clk 0:00:14]} 68. Bb5 {[%clk 0:00:11]}  Rc3 {[%clk 0:00:13]} 69. Bd7 {[%clk 0:00:10]}  Kd3 {[%clk 0:00:14]} 70. Bb5+ {[%clk 0:00:09]}  Kd2 {[%clk 0:00:14]} 71. Ba6 {[%clk 0:00:08]}  Rc2+ {[%clk 0:00:13]} 72. Kb3 {[%clk 0:00:08]}  Rc1 {[%clk 0:00:13]} 73. Kb2 {[%clk 0:00:08]}  Rg1 {[%clk 0:00:11]} 74. Bb5 {[%clk 0:00:08]}  Rg4 {[%clk 0:00:11]} 75. Kb3 {[%clk 0:00:08]}  Rb4+ {[%clk 0:00:12]} 76. Ka3 {[%clk 0:00:08]}  Kc3 {[%clk 0:00:12]} 77. Ka2 {[%clk 0:00:07]}  Rb3 {[%clk 0:00:11]} 78. Bc6 {[%clk 0:00:07]}  Rb2+ {[%clk 0:00:11]} 79. Ka3 {[%clk 0:00:07]}  Rb1 {[%clk 0:00:11]} 80. Ka2 {[%clk 0:00:07]}  Re1 {[%clk 0:00:11]} 81. Bb5 {[%clk 0:00:07]}  Rg1 {[%clk 0:00:09]} 82. Bc6 {[%clk 0:00:05]}  Rg3 {[%clk 0:00:08]} 83. Bb5 {[%clk 0:00:05]}  Rg2+ {[%clk 0:00:09]} 84. Ka3 {[%clk 0:00:05]}  Rb2 {[%clk 0:00:09]} 85. Bc6 {[%clk 0:00:04]}  Kc2 {[%clk 0:00:08]} 86. Bb5 {[%clk 0:00:03]}  Kc1 {[%clk 0:00:07]} 87. Bc6 {[%clk 0:00:03]}  Rc2 {[%clk 0:00:07]} 88. Bb5 {[%clk 0:00:03]}  Rc3+ {[%clk 0:00:08]} 89. Ka2 {[%clk 0:00:03]}  Kc2 {[%clk 0:00:08]} 90. Bd7 {[%clk 0:00:02]}  Rc5 {[%clk 0:00:06]} 91. Bb5 {[%clk 0:00:03]}  Rc3 {[%clk 0:00:06]} 92. Bd7 {[%clk 0:00:04]}  Re3 {[%clk 0:00:06]} 93. Bb5 {[%clk 0:00:04]}  Re4 {[%clk 0:00:06]} 94. Bc6 {[%clk 0:00:04]}  Rb4 {[%clk 0:00:06]} 95. Bb5 {[%clk 0:00:04]}  Kc3 {[%clk 0:00:06]} 96. Ka3 {[%clk 0:00:04]}  Rb1 {[%clk 0:00:06]} 97. Ka2 {[%clk 0:00:04]}  Rb2+ {[%clk 0:00:06]} 98. Ka3 {[%clk 0:00:04]}  Rd2 {[%clk 0:00:06]} 99. Bc6 {[%clk 0:00:03]}  Rd1 {[%clk 0:00:06]} 100. Ka2 {[%clk 0:00:03]}  Kb4 {[%clk 0:00:06]} 101. Bb5 {[%clk 0:00:03]}  Rd4 {[%clk 0:00:06]} 102. Bc6 {[%clk 0:00:02]}  Rd3 {[%clk 0:00:06]} 103. Bb5 {[%clk 0:00:02]}  Ra3+ {[%clk 0:00:07]} 104. Kb2 {[%clk 0:00:03]}  Rb3+ {[%clk 0:00:07]} 105. Ka2 {[%clk 0:00:03]}  Rc3 {[%clk 0:00:07]} 106. Kb2 {[%clk 0:00:03]}  Rc5 {[%clk 0:00:07]} 107. Ka2 {[%clk 0:00:03]}  Rc2+ {[%clk 0:00:07]} 108. Kb1 {[%clk 0:00:03]}  Kb3 {[%clk 0:00:08]} 109. Bd7 {[%clk 0:00:01]}  Rb2+ {[%clk 0:00:08]} 0-1


[Site "https://www.chess.com"]

[Event "Titled Tuesday Blitz January 31 Late 2023"]
[White "Koellner, Ruben Gideon"]
[Black "Rose, Felix"]
[WhiteFideId "12993093"]
[BlackFideId "5105722"]
[WhiteElo "2426"]
[BlackElo "2091"]
[Result "1-0"]
[Round "01"]
[TimeControl "180+2"]
[Date "2023.01.31"]
[WhiteClock "0:01:12"]
[BlackClock "0:00:12"]

1. d4 {[%clk 0:03:00]}  d5 {[%clk 0:02:59]} 2. Nf3 {[%clk 0:03:00]}  Nf6 {[%clk 0:02:58]} 3. e3 {[%clk 0:03:00]}  c5 {[%clk 0:02:55]} 4. Nbd2 {[%clk 0:02:57]}  e6 {[%clk 0:02:49]} 5. c3 {[%clk 0:02:54]}  Be7 {[%clk 0:02:44]} 6. Bd3 {[%clk 0:02:54]}  Nbd7 {[%clk 0:02:43]} 7. O-O {[%clk 0:02:54]}  b6 {[%clk 0:02:44]} 8. Ne5 {[%clk 0:02:52]}  Bb7 {[%clk 0:02:35]} 9. f4 {[%clk 0:02:51]}  Ne4 {[%clk 0:02:31]} 10. Nxe4 {[%clk 0:02:43]}  dxe4 {[%clk 0:02:30]} 11. Bb5 {[%clk 0:02:43]}  Bc8 {[%clk 0:02:23]} 12. Bc6 {[%clk 0:02:40]}  Rb8 {[%clk 0:02:20]} 13. Bxe4 {[%clk 0:02:40]}  Bb7 {[%clk 0:02:08]} 14. Bxb7 {[%clk 0:02:33]}  Rxb7 {[%clk 0:02:08]} 15. Qf3 {[%clk 0:02:32]}  Qc8 {[%clk 0:01:58]} 16. e4 {[%clk 0:02:02]}  cxd4 {[%clk 0:01:49]} 17. cxd4 {[%clk 0:02:01]}  Rc7 {[%clk 0:01:41]} 18. Be3 {[%clk 0:01:59]}  O-O {[%clk 0:01:06]} 19. Rac1 {[%clk 0:01:58]}  Nxe5 {[%clk 0:00:22]} 20. fxe5 {[%clk 0:01:59]}  Rc2 {[%clk 0:00:21]} 21. Qd1 {[%clk 0:01:52]}  Rc4 {[%clk 0:00:19]} 22. Qd3 {[%clk 0:01:49]}  Rc6 {[%clk 0:00:16]} 23. Rxc6 {[%clk 0:01:45]}  Qxc6 {[%clk 0:00:16]} 24. d5 {[%clk 0:01:39]}  Qa4 {[%clk 0:00:16]} 25. d6 {[%clk 0:01:35]}  Bd8 {[%clk 0:00:16]} 26. a3 {[%clk 0:01:32]}  f5 {[%clk 0:00:15]} 27. exf5 {[%clk 0:01:30]}  exf5 {[%clk 0:00:13]} 28. Qd5+ {[%clk 0:01:14]}  Kh8 {[%clk 0:00:14]} 29. e6 {[%clk 0:01:14]}  f4 {[%clk 0:00:12]} 30. e7 {[%clk 0:01:12]} 1-0


[Site "https://www.chess.com"]

[Event "Titled Tuesday Blitz January 31 Late 2023"]
[White "Gardezi, Arsal"]
[Black "Carnicelli, Valerio"]
[WhiteFideId "30949521"]
[BlackFideId "856185"]
[WhiteElo "2093"]
[BlackElo "2370"]
[Result "0-1"]
[Round "01"]
[TimeControl "180+2"]
[Date "2023.01.31"]
[WhiteClock "0:00:08"]
[BlackClock "0:00:07"]

1. Nf3 {[%clk 0:02:59]}  Nf6 {[%clk 0:03:00]} 2. d4 {[%clk 0:02:42]}  e6 {[%clk 0:03:00]} 3. c4 {[%clk 0:02:43]}  c5 {[%clk 0:03:00]} 4. Nc3 {[%clk 0:02:43]}  cxd4 {[%clk 0:02:57]} 5. Nxd4 {[%clk 0:02:42]}  Nc6 {[%clk 0:02:57]} 6. e4 {[%clk 0:02:41]}  Bb4 {[%clk 0:02:53]} 7. Nxc6 {[%clk 0:02:29]}  bxc6 {[%clk 0:02:52]} 8. Bd3 {[%clk 0:02:28]}  e5 {[%clk 0:02:52]} 9. O-O {[%clk 0:02:28]}  O-O {[%clk 0:02:51]} 10. a3 {[%clk 0:02:28]}  Bxc3 {[%clk 0:02:51]} 11. bxc3 {[%clk 0:02:28]}  d6 {[%clk 0:02:51]} 12. Be3 {[%clk 0:02:27]}  c5 {[%clk 0:02:51]} 13. Bc2 {[%clk 0:02:26]}  Rb8 {[%clk 0:02:44]} 14. f3 {[%clk 0:02:26]}  Be6 {[%clk 0:02:44]} 15. Qd3 {[%clk 0:02:19]}  Qc7 {[%clk 0:02:35]} 16. Rfd1 {[%clk 0:02:18]}  Rb6 {[%clk 0:02:35]} 17. Rab1 {[%clk 0:02:16]}  Rfb8 {[%clk 0:02:34]} 18. Rxb6 {[%clk 0:01:55]}  Rxb6 {[%clk 0:02:35]} 19. f4 {[%clk 0:01:55]}  Ng4 {[%clk 0:02:29]} 20. Bc1 {[%clk 0:01:41]}  h6 {[%clk 0:02:12]} 21. h3 {[%clk 0:01:40]}  Nf6 {[%clk 0:02:08]} 22. f5 {[%clk 0:01:37]}  Bc8 {[%clk 0:02:06]} 23. Qg3 {[%clk 0:01:34]}  Kf8 {[%clk 0:02:05]} 24. Qh4 {[%clk 0:01:33]}  Qe7 {[%clk 0:01:54]} 25. g4 {[%clk 0:01:14]}  Nh7 {[%clk 0:01:53]} 26. Qg3 {[%clk 0:01:09]}  Bb7 {[%clk 0:01:48]} 27. Kh2 {[%clk 0:01:09]}  Nf6 {[%clk 0:01:41]} 28. Re1 {[%clk 0:01:09]}  Ba6 {[%clk 0:01:40]} 29. Bd3 {[%clk 0:01:03]}  Rb3 {[%clk 0:01:39]} 30. Bf1 {[%clk 0:00:59]}  Qb7 {[%clk 0:01:36]} 31. Qd3 {[%clk 0:00:59]}  Qc6 {[%clk 0:01:26]} 32. g5 {[%clk 0:00:56]}  hxg5 {[%clk 0:01:26]} 33. Bxg5 {[%clk 0:00:57]}  Rb2+ {[%clk 0:01:20]} 34. Bg2 {[%clk 0:00:41]}  Ke7 {[%clk 0:01:00]} 35. Rd1 {[%clk 0:00:30]}  Bb7 {[%clk 0:00:59]} 36. Rd2 {[%clk 0:00:26]}  Rxd2 {[%clk 0:00:53]} 37. Qxd2 {[%clk 0:00:27]}  Ba6 {[%clk 0:00:53]} 38. Bh4 {[%clk 0:00:27]}  Bxc4 {[%clk 0:00:48]} 39. Qg5 {[%clk 0:00:27]}  Kf8 {[%clk 0:00:47]} 40. Qe3 {[%clk 0:00:23]}  Qa4 {[%clk 0:00:41]} 41. Qd2 {[%clk 0:00:22]}  Qa6 {[%clk 0:00:39]} 42. Bf3 {[%clk 0:00:20]}  Bd3 {[%clk 0:00:34]} 43. Qg5 {[%clk 0:00:20]}  Qxa3 {[%clk 0:00:27]} 44. Qe3 {[%clk 0:00:20]}  Qxc3 {[%clk 0:00:23]} 45. Be2 {[%clk 0:00:18]}  c4 {[%clk 0:00:16]} 46. Bf2 {[%clk 0:00:10]}  Qc2 {[%clk 0:00:11]} 47. Bf3 {[%clk 0:00:10]}  Kg8 {[%clk 0:00:09]} 48. Qxa7 {[%clk 0:00:09]}  Bxe4 {[%clk 0:00:08]} 49. Bg4 {[%clk 0:00:09]}  Bxf5 {[%clk 0:00:07]} 50. Qb8+ {[%clk 0:00:09]}  Kh7 {[%clk 0:00:07]} 51. Qxd6 {[%clk 0:00:08]}  Qxf2+ {[%clk 0:00:06]} 52. Kh1 {[%clk 0:00:08]}  Be4+ {[%clk 0:00:07]} 0-1


[Site "https://www.chess.com"]

[Event "Titled Tuesday Blitz January 31 Late 2023"]
[White "EREBUNI91"]
[Black "Dylag, Emilia"]
[BlackFideId "21805172"]
[WhiteElo "2685"]
[BlackElo "2095"]
[Result "1-0"]
[Round "01"]
[TimeControl "180+2"]
[Date "2023.01.31"]
[WhiteClock "0:00:33"]
[BlackClock "0:00:01"]

1. e4 {[%clk 0:02:56]}  e5 {[%clk 0:02:59]} 2. Nf3 {[%clk 0:02:55]}  Nc6 {[%clk 0:02:58]} 3. Nc3 {[%clk 0:02:55]}  Nf6 {[%clk 0:02:58]} 4. d4 {[%clk 0:02:54]}  exd4 {[%clk 0:02:57]} 5. Nxd4 {[%clk 0:02:55]}  Bb4 {[%clk 0:02:57]} 6. Nxc6 {[%clk 0:02:53]}  bxc6 {[%clk 0:02:58]} 7. Bd3 {[%clk 0:02:51]}  d5 {[%clk 0:02:58]} 8. exd5 {[%clk 0:02:51]}  O-O {[%clk 0:02:57]} 9. O-O {[%clk 0:02:50]}  cxd5 {[%clk 0:02:57]} 10. Bg5 {[%clk 0:02:48]}  c6 {[%clk 0:02:50]} 11. Qf3 {[%clk 0:02:47]}  Rb8 {[%clk 0:02:50]} 12. h3 {[%clk 0:02:42]}  h6 {[%clk 0:02:50]} 13. Bxh6 {[%clk 0:02:37]}  gxh6 {[%clk 0:02:47]} 14. Qg3+ {[%clk 0:02:36]}  Kh8 {[%clk 0:02:23]} 15. Qxb8 {[%clk 0:02:36]}  Bd6 {[%clk 0:02:23]} 16. Qxa7 {[%clk 0:02:36]}  Rg8 {[%clk 0:02:23]} 17. Qe3 {[%clk 0:02:32]}  Bf8 {[%clk 0:02:08]} 18. Ne2 {[%clk 0:02:23]}  h5 {[%clk 0:02:03]} 19. Qf3 {[%clk 0:02:17]}  Bh6 {[%clk 0:02:00]} 20. Ng3 {[%clk 0:02:15]}  Bxh3 {[%clk 0:01:34]} 21. gxh3 {[%clk 0:02:08]}  h4 {[%clk 0:01:34]} 22. Kh2 {[%clk 0:02:03]}  Qd6 {[%clk 0:01:30]} 23. Rg1 {[%clk 0:01:52]}  Bf4 {[%clk 0:01:22]} 24. Rg2 {[%clk 0:01:42]}  c5 {[%clk 0:01:19]} 25. c3 {[%clk 0:01:37]}  Rg5 {[%clk 0:01:18]} 26. Rag1 {[%clk 0:01:34]}  c4 {[%clk 0:01:14]} 27. Kh1 {[%clk 0:00:49]}  cxd3 {[%clk 0:01:03]} 28. Nf1 {[%clk 0:00:49]}  Ne4 {[%clk 0:00:51]} 29. Rxg5 {[%clk 0:00:46]}  Bxg5 {[%clk 0:00:51]} 30. Qh5+ {[%clk 0:00:44]}  Bh6 {[%clk 0:00:45]} 31. Qxf7 {[%clk 0:00:42]}  Qf8 {[%clk 0:00:22]} 32. Qxf8+ {[%clk 0:00:38]}  Bxf8 {[%clk 0:00:23]} 33. Kg2 {[%clk 0:00:37]}  Bh6 {[%clk 0:00:21]} 34. Ne3 {[%clk 0:00:37]}  Kg7 {[%clk 0:00:07]} 35. Rd1 {[%clk 0:00:35]}  d2 {[%clk 0:00:06]} 36. Kf3 {[%clk 0:00:33]}  Kf6 {[%clk 0:00:04]} 37. Nxd5+ {[%clk 0:00:33]}  Ke5 {[%clk 0:00:04]} 38. Ne3 {[%clk 0:00:33]}  Bf8 {[%clk 0:00:01]} 39. Ke2 {[%clk 0:00:32]}  Bh6 {[%clk 0:00:02]} 40. Ng4+ {[%clk 0:00:32]}  Kf4 {[%clk 0:00:01]} 41. Nxh6 {[%clk 0:00:33]} 1-0


[Site "https://www.chess.com"]

[Event "Titled Tuesday Blitz January 31 Late 2023"]
[White "Rosenberg, Evan S"]
[Black "Blit, Jacques"]
[WhiteFideId "2019299"]
[BlackFideId "114839"]
[WhiteElo "1956"]
[BlackElo "2309"]
[Result "0-1"]
[Round "01"]
[TimeControl "180+2"]
[Date "2023.01.31"]
[WhiteClock "0:00:02"]
[BlackClock "0:00:09"]

1. d4 {[%clk 0:02:58]}  d6 {[%clk 0:03:00]} 2. e4 {[%clk 0:02:57]}  Nf6 {[%clk 0:03:00]} 3. Nc3 {[%clk 0:02:57]}  g6 {[%clk 0:03:00]} 4. Nf3 {[%clk 0:02:56]}  Bg7 {[%clk 0:03:00]} 5. Be2 {[%clk 0:02:57]}  O-O {[%clk 0:03:00]} 6. O-O {[%clk 0:02:57]}  a6 {[%clk 0:02:58]} 7. Re1 {[%clk 0:02:56]}  b5 {[%clk 0:02:58]} 8. e5 {[%clk 0:02:56]}  Nfd7 {[%clk 0:02:57]} 9. e6 {[%clk 0:02:47]}  fxe6 {[%clk 0:02:57]} 10. Ng5 {[%clk 0:02:47]}  Nb6 {[%clk 0:02:38]} 11. Bf3 {[%clk 0:02:43]}  d5 {[%clk 0:02:13]} 12. Nxe6 {[%clk 0:02:41]}  Bxe6 {[%clk 0:02:12]} 13. Rxe6 {[%clk 0:02:42]}  Rf6 {[%clk 0:02:09]} 14. Rxb6 {[%clk 0:02:34]}  Rxb6 {[%clk 0:02:05]} 15. Bxd5+ {[%clk 0:02:35]}  Kh8 {[%clk 0:01:58]} 16. Bxa8 {[%clk 0:02:35]}  c6 {[%clk 0:01:57]} 17. d5 {[%clk 0:02:26]}  b4 {[%clk 0:01:52]} 18. Na4 {[%clk 0:02:08]}  Rb5 {[%clk 0:01:47]} 19. c4 {[%clk 0:02:00]}  bxc3 {[%clk 0:01:47]} 20. Nxc3 {[%clk 0:02:00]}  Bxc3 {[%clk 0:01:47]} 21. Bf4 {[%clk 0:00:49]}  Rxd5 {[%clk 0:01:43]} 22. Qc2 {[%clk 0:00:46]}  Bf6 {[%clk 0:01:41]} 23. h3 {[%clk 0:00:42]}  Qb6 {[%clk 0:01:26]} 24. Bxb8 {[%clk 0:00:36]}  Qxb8 {[%clk 0:01:25]} 25. Qxc6 {[%clk 0:00:33]}  Rd2 {[%clk 0:01:18]} 26. Qxa6 {[%clk 0:00:23]}  Rxb2 {[%clk 0:00:55]} 27. Rf1 {[%clk 0:00:22]}  Bd4 {[%clk 0:00:48]} 28. Bd5 {[%clk 0:00:20]}  Qf4 {[%clk 0:00:39]} 29. Qc8+ {[%clk 0:00:18]}  Kg7 {[%clk 0:00:39]} 30. Qg8+ {[%clk 0:00:18]}  Kh6 {[%clk 0:00:39]} 31. Bf3 {[%clk 0:00:14]}  e5 {[%clk 0:00:25]} 32. Qd5 {[%clk 0:00:13]}  Rd2 {[%clk 0:00:23]} 33. Qe4 {[%clk 0:00:13]}  Qxe4 {[%clk 0:00:16]} 34. Bxe4 {[%clk 0:00:13]}  Rxa2 {[%clk 0:00:17]} 35. g3 {[%clk 0:00:12]}  Kg5 {[%clk 0:00:17]} 36. Kg2 {[%clk 0:00:12]}  h5 {[%clk 0:00:17]} 37. h4+ {[%clk 0:00:12]}  Kf6 {[%clk 0:00:17]} 38. Kf3 {[%clk 0:00:11]}  g5 {[%clk 0:00:17]} 39. hxg5+ {[%clk 0:00:11]}  Kxg5 {[%clk 0:00:18]} 40. Kg2 {[%clk 0:00:11]}  Kg4 {[%clk 0:00:18]} 41. Bf3+ {[%clk 0:00:11]}  Kg5 {[%clk 0:00:19]} 42. Be4 {[%clk 0:00:11]}  Kf6 {[%clk 0:00:18]} 43. Bf3 {[%clk 0:00:11]}  Kf5 {[%clk 0:00:18]} 44. Bxh5 {[%clk 0:00:11]}  e4 {[%clk 0:00:19]} 45. Be8 {[%clk 0:00:10]}  e3 {[%clk 0:00:18]} 46. Kf3 {[%clk 0:00:08]}  exf2 {[%clk 0:00:15]} 47. Bd7+ {[%clk 0:00:07]}  Ke5 {[%clk 0:00:13]} 48. g4 {[%clk 0:00:06]}  Ra3+ {[%clk 0:00:13]} 49. Kg2 {[%clk 0:00:06]}  Kf4 {[%clk 0:00:14]} 50. Bf5 {[%clk 0:00:05]}  Rg3+ {[%clk 0:00:14]} 51. Kh2 {[%clk 0:00:05]}  Kf3 {[%clk 0:00:11]} 52. g5 {[%clk 0:00:03]}  Rxg5 {[%clk 0:00:10]} 53. Bh3 {[%clk 0:00:02]}  Rg1 {[%clk 0:00:09]} 0-1


[Site "https://www.chess.com"]

[Event "Titled Tuesday Blitz January 31 Late 2023"]
[White "Bulgurlu, Okan"]
[Black "Mladek, Richard"]
[WhiteFideId "6352316"]
[BlackFideId "386588"]
[WhiteElo "1908"]
[BlackElo "2436"]
[Result "1-0"]
[Round "01"]
[TimeControl "180+2"]
[Date "2023.01.31"]
[WhiteClock "0:01:30"]
[BlackClock "0:01:09"]

1. e4 {[%clk 0:03:00]}  f5 {[%clk 0:02:57]} 2. exf5 {[%clk 0:03:00]}  Nf6 {[%clk 0:02:58]} 3. d4 {[%clk 0:03:00]}  d5 {[%clk 0:02:58]} 4. Bd3 {[%clk 0:02:59]}  c5 {[%clk 0:02:58]} 5. dxc5 {[%clk 0:02:59]}  e5 {[%clk 0:02:59]} 6. fxe6 {[%clk 0:02:59]}  Bxc5 {[%clk 0:02:59]} 7. Nf3 {[%clk 0:02:51]}  O-O {[%clk 0:02:59]} 8. O-O {[%clk 0:02:40]}  Bxe6 {[%clk 0:02:59]} 9. Ng5 {[%clk 0:02:32]}  Bd7 {[%clk 0:02:57]} 10. Nxh7 {[%clk 0:02:11]}  Ng4 {[%clk 0:02:23]} 11. Nxf8 {[%clk 0:02:04]}  Qh4 {[%clk 0:02:23]} 12. h3 {[%clk 0:02:02]}  Nxf2 {[%clk 0:02:11]} 13. Bh7+ {[%clk 0:01:36]}  Qxh7 {[%clk 0:01:09]} 14. Qxd5+ {[%clk 0:01:30]} 1-0


[Site "https://www.chess.com"]